fUST/lending_fUST_20240310
["ID","MTS","AMOUNT","RATE_DAILY","PERIOD"]
[318114128,1710085833461,-596.19717157,0.0002008,2]
[318114129,1710085833473,-1500.0,0.00020919,2]
[318114130,1710085833484,-1840.77357496,0.00021,2]
[318114131,1710085833493,-47656.7894357,0.0002114,2]
[318114132,1710085833502,-1500.0,0.0002114,2]
[318114133,1710085833512,-1500.0,0.00021362,2]
[318114134,1710085833522,-218.33456008,0.00021583,2]
[318114135,1710085833532,-338.31606389,0.00021584,2]
[318114176,1710085838177,-404.53047881,0.00020075,2]
[318114178,1710085838186,-624.32879826,0.00020075,2]
[318114180,1710085838196,-1161.68393611,0.00021584,2]
[318114181,1710085838205,-1500.0,0.00021805,2]
[318114182,1710085838214,-404.52876093,0.00021848,2]
[318114183,1710085838223,-1000.0,0.00022,2]
[318114184,1710085838232,-5070.72772713,0.00022,10]
[318114185,1710085838242,-155.0,0.00022,2]
[318114186,1710085838251,-157.3796157,0.00022,2]
[318114187,1710085838260,-327.45198075,0.00022025,2]
[318114188,1710085838363,-1500.0,0.00022027,2]
[318114189,1710085838372,-875.78225158,0.0002217,2]
[318114190,1710085838382,-1500.0,0.00022249,2]
[318114191,1710085838393,-165.418387,0.00022417,2]
[318114192,1710085838411,-322.108845,0.00022417,2]
[318114193,1710085838420,-231.345532,0.00022417,2]
[318114194,1710085838430,-1500.0,0.00022471,2]
[318114195,1710085838439,-4725.07326939,0.00022484,2]
[318114196,1710085838449,-13704.30025763,0.00022484,2]
[318114197,1710085838458,-1961.87149623,0.00022484,2]
[318114198,1710085838467,-1500.0,0.00022692,2]
[318114199,1710085838476,-322.108845,0.00022697,2]
[318114200,1710085838486,-231.345532,0.00022697,2]
[318114201,1710085838495,-500.0,0.00022738,2]
[318114202,1710085838505,-353.18858376,0.00022738,2]
[318114203,1710085838514,-2424.32,0.00022739,2]
[318114204,1710085838524,-500.0,0.00022739,2]
[318114205,1710085838533,-254.72782391,0.00022739,2]
[318114206,1710085838544,-500.0,0.00022739,2]
[318114207,1710085838553,-500.0,0.00022739,2]
[318114208,1710085838563,-1064.18,0.00022739,2]
[318114209,1710085838572,-1064.18,0.00022739,2]
[318114210,1710085838581,-1064.18,0.00022739,2]
[318114211,1710085838590,-500.0,0.00022739,2]
[318114212,1710085838599,-500.0,0.00022739,2]
[318114213,1710085838608,-500.0,0.00022739,2]
[318114214,1710085838618,-500.0,0.00022739,2]
[318114215,1710085838627,-2844.01,0.00022739,2]
[318114216,1710085838636,-500.0,0.00022739,2]
[318114217,1710085838645,-2844.01,0.00022739,2]
[318114218,1710085838655,-2844.01,0.00022739,2]
[318114219,1710085838664,-831.88,0.00022739,2]
[318114220,1710085838673,-14217.62,0.00022739,2]
[318114221,1710085838683,-10854.11,0.00022739,2]
[318114222,1710085838692,-500.33449632,0.00022739,2]
[318114223,1710085838702,-2987.26,0.00022739,2]
[318114224,1710085838711,-2987.26,0.00022739,2]
[318114225,1710085838720,-2987.26,0.00022739,2]
[318114226,1710085838729,-500.0,0.00022739,2]
[318114227,1710085838738,-500.0,0.00022739,2]
[318114228,1710085838748,-500.0,0.00022739,2]
[318114229,1710085838758,-500.0,0.00022739,2]
[318114230,1710085838767,-500.0,0.00022739,2]
[318114231,1710085838776,-651.74368271,0.00022766,2]
[318114232,1710085838785,-463.7319114,0.00022836,2]
[318114233,1710085838794,-451.15086401,0.00022836,2]
[318114234,1710085838803,-151.0,0.00022836,2]
[318114235,1710085838812,-151.0,0.00022836,2]
[318114236,1710085838821,-500.0,0.00022897,2]
[318114237,1710085838831,-500.92220479,0.00022897,2]
[318114238,1710085838840,-500.0,0.00022897,2]
[318114239,1710085838849,-851.50233272,0.00022898,2]
[318114240,1710085838858,-500.0,0.00022899,2]
[318114241,1710085838866,-500.0,0.00022899,2]
[318114242,1710085838876,-500.0,0.00022899,2]
[318114243,1710085838884,-360.60270424,0.00022899,2]
[318114244,1710085838894,-500.0,0.00022899,2]
[318114245,1710085838902,-500.0,0.00022899,2]
[318114246,1710085838912,-151.0,0.00022899,2]
[318114247,1710085838921,-151.0,0.00022899,2]
[318114248,1710085838930,-1500.0,0.00022914,2]
[318114249,1710085838938,-196.47164973,0.00022973,2]
[318114250,1710085838951,-303.52835027,0.00022973,2]
[318114251,1710085838960,-165.68008,0.00022973,2]
[318114252,1710085838969,-165.68008,0.00022973,2]
[318114253,1710085838978,-500.0,0.00022973,2]
[318114254,1710085838988,-151.0,0.00022973,2]
[318114255,1710085838997,-151.0,0.00022973,2]
[318114256,1710085839005,-500.0,0.00022973,2]
[318114257,1710085839014,-500.0,0.00022973,2]
[318114258,1710085839024,-831.88,0.00022973,2]
[318114259,1710085839032,-3768.46973173,0.00022973,2]
[318114260,1710085839045,-1979.42050812,0.00022973,2]
[318114261,1710085839057,-796.85540788,0.00022973,2]
[318114262,1710085839069,-7672.87435227,0.00022973,2]
[318114263,1710085839078,-10854.11,0.00022973,2]
[318114264,1710085839087,-322.108845,0.00022977,2]
[318114265,1710085839096,-231.345532,0.00022977,2]
[318114266,1710085839105,-498.6842,0.00022993,2]
[318114267,1710085839114,-165.68008,0.00022994,2]
[318114268,1710085839123,-165.68008,0.00022994,2]
[318114269,1710085839132,-151.0,0.00022994,2]
[318114270,1710085839141,-500.0,0.00022994,2]
[318114271,1710085839150,-152.103876,0.00022994,2]
[318114272,1710085839159,-151.0,0.00022994,2]
[318114273,1710085839168,-151.0,0.00022994,2]
[318114274,1710085839177,-500.0,0.00022994,2]
[318114275,1710085839186,-151.0,0.00022994,2]
[318114276,1710085839195,-151.0,0.00022994,2]
[318114277,1710085839205,-2987.26,0.00022994,2]
[318114278,1710085839214,-500.0,0.00022995,2]
[318114279,1710085839223,-500.0,0.00022995,2]
[318114280,1710085839232,-500.0,0.00022995,2]
[318114281,1710085839241,-500.0,0.00022995,2]
[318114282,1710085839250,-353.61616877,0.00022995,2]
[318114283,1710085839260,-500.0,0.00022995,2]
[318114284,1710085839269,-500.0,0.00022995,2]
[318114285,1710085839278,-500.0,0.00022995,2]
[318114286,1710085839287,-500.0,0.00022995,2]
[318114287,1710085839296,-500.0,0.00022995,2]
[318114288,1710085839306,-500.0,0.00022995,2]
[318114289,1710085839315,-500.0,0.00022995,2]
[318114290,1710085839324,-500.0,0.00022995,2]
[318114291,1710085839333,-500.0,0.00022995,2]
[318114292,1710085839342,-500.0,0.00022995,2]
[318114293,1710085839352,-500.0,0.00022995,2]
[318114294,1710085839361,-500.0,0.00022995,2]
[318114295,1710085839370,-500.0,0.00022995,2]
[318114296,1710085839379,-500.0,0.00022995,2]
[318114297,1710085839389,-154.92253873,0.00022995,2]
[318114298,1710085839402,-500.0,0.00022995,2]
[318114299,1710085839411,-350.64900001,0.00022995,2]
[318114300,1710085839420,-165.68008,0.00022995,2]
[318114301,1710085839430,-165.68008,0.00022995,2]
[318114302,1710085839439,-151.0,0.00022995,2]
[318114303,1710085839449,-1064.18,0.00022995,2]
[318114304,1710085839458,-151.0,0.00022995,2]
[318114305,1710085839469,-246.69138,0.00022995,2]
[318114306,1710085839478,-2844.01,0.00022995,2]
[318114307,1710085839489,-151.0,0.00022995,2]
[318114308,1710085839498,-151.0,0.00022995,2]
[318114309,1710085839507,-500.0,0.00022995,2]
[318114310,1710085839516,-500.0,0.00022996,2]
[318114311,1710085839525,-500.0,0.00022996,2]
[318114312,1710085839534,-500.0,0.00022996,2]
[318114313,1710085839545,-165.68008,0.00022996,2]
[318114314,1710085839554,-165.68008,0.00022996,2]
[318114315,1710085839563,-165.68008,0.00022996,2]
[318114316,1710085839573,-165.68008,0.00022996,2]
[318114317,1710085839582,-151.0,0.00022996,2]
[318114318,1710085839591,-151.0,0.00022996,2]
[318114319,1710085839600,-500.0,0.00022996,2]
[318114320,1710085839609,-500.0,0.00022996,2]
[318114321,1710085839618,-500.0,0.00022996,2]
[318114322,1710085839627,-500.0,0.00022996,2]
[318114323,1710085839636,-1064.18,0.00022996,2]
[318114325,1710085839645,-1064.18,0.00022996,2]
[318114327,1710085839654,-1064.18,0.00022996,2]
[318114328,1710085839663,-1064.18,0.00022996,2]
[318114330,1710085839672,-1064.18,0.00022996,2]
[318114332,1710085839682,-151.0,0.00022996,2]
[318114333,1710085839691,-151.0,0.00022996,2]
[318114334,1710085839700,-500.0,0.00022996,2]
[318114335,1710085839710,-500.0,0.00022996,2]
[318114336,1710085839718,-500.0,0.00022996,2]
[318114337,1710085839727,-249.46994763,0.00022996,2]
[318114338,1710085839736,-500.0,0.00022996,2]
[318114339,1710085839745,-500.0,0.00022996,2]
[318114340,1710085839755,-500.0,0.00022996,2]
[318114341,1710085839764,-500.0,0.00022996,2]
[318114342,1710085839772,-2844.01,0.00022996,2]
[318114343,1710085839781,-500.0,0.00022996,2]
[318114344,1710085839792,-2844.01,0.00022996,2]
[318114345,1710085839801,-2844.01,0.00022996,2]
[318114346,1710085839810,-2844.01,0.00022996,2]
[318114347,1710085839819,-2844.01,0.00022996,2]
[318114348,1710085839828,-831.88,0.00022996,2]
[318114349,1710085839837,-831.88,0.00022996,2]
[318114350,1710085839847,-831.88,0.00022996,2]
[318114351,1710085839856,-14217.62,0.00022996,2]
[318114352,1710085839865,-14217.62,0.00022996,2]
[318114353,1710085839874,-14217.62,0.00022996,2]
[318114354,1710085839883,-151.0,0.00022996,2]
[318114355,1710085839892,-151.0,0.00022996,2]
[318114357,1710085839901,-151.0,0.00022996,2]
[318114359,1710085839910,-224.005819,0.00022996,2]
[318114361,1710085839919,-10854.11,0.00022996,2]
[318114362,1710085839928,-10854.11,0.00022996,2]
[318114364,1710085839937,-8300.1288326,0.00022996,2]
[318114390,1710085840286,-500.0,0.00022739,2]
[318114391,1710085840296,-500.0,0.00022994,2]
[318114392,1710085840305,-2553.9811674,0.00022996,2]
[318114393,1710085840314,-401.6431326,0.00022996,2]
[318114394,1710085840336,-0.11,0.00022996,2]
[318114409,1710085840752,-1881.20686118,0.00022996,2]
[318114679,1710085843367,-704.30000622,0.00022996,2]
[318114682,1710085843377,-1235.30252438,0.00022996,2]
[318114687,1710085843389,-1751.95747562,0.00022996,2]
[318114690,1710085843401,-2987.26,0.00022996,2]
[318114692,1710085843410,-459.10470338,0.00022996,2]
[318114696,1710085843422,-2528.15529662,0.00022996,2]
[318114699,1710085843431,-2987.26,0.00022996,2]
[318114701,1710085843441,-500.0,0.00022996,2]
[318114703,1710085843450,-500.0,0.00022996,2]
[318114704,1710085843459,-500.0,0.00022996,2]
[318114706,1710085843469,-500.0,0.00022996,2]
[318114708,1710085843478,-500.0,0.00022996,2]
[318114710,1710085843488,-277.66034674,0.00022997,3]
[318114712,1710085843497,-500.0,0.00022997,2]
[318114714,1710085843507,-500.0,0.00022997,2]
[318114716,1710085843516,-500.0,0.00022997,2]
[318114718,1710085843525,-500.0,0.00022997,2]
[318114720,1710085843534,-500.0,0.00022997,2]
[318114722,1710085843545,-500.0,0.00022997,2]
[318114724,1710085843554,-500.0,0.00022997,2]
[318114726,1710085843563,-500.0,0.00022997,2]
[318114728,1710085843572,-602.84210323,0.00022997,2]
[318114730,1710085843581,-500.0,0.00022997,2]
[318114732,1710085843592,-500.0,0.00022997,2]
[318114734,1710085843601,-153.70609661,0.00022997,2]
[318114736,1710085843613,-346.29390339,0.00022997,2]
[318114738,1710085843623,-401.70020613,0.00022997,2]
[318114740,1710085843634,-500.0,0.00022997,2]
[318114742,1710085843644,-500.0,0.00022997,2]
[318114744,1710085843654,-500.0,0.00022997,2]
[318114746,1710085843665,-500.0,0.00022997,2]
[318114748,1710085843675,-500.0,0.00022997,2]
[318114750,1710085843686,-500.0,0.00022997,2]
[318114752,1710085843699,-500.0,0.00022997,2]
[318114754,1710085843708,-500.0,0.00022997,2]
[318114757,1710085843719,-500.0,0.00022997,2]
[318114759,1710085843729,-500.0,0.00022997,2]
[318114760,1710085843738,-500.0,0.00022997,2]
[318114762,1710085843747,-500.0,0.00022997,2]
[318114764,1710085843756,-500.0,0.00022997,2]
[318114766,1710085843766,-426.76368864,0.00022997,2]
[318114768,1710085843775,-500.0,0.00022997,2]
[318114770,1710085843784,-500.0,0.00022997,2]
[318114772,1710085843794,-151.0,0.00022997,2]
[318114774,1710085843806,-151.0,0.00022997,2]
[318114776,1710085843815,-151.743916,0.00022997,2]
[318114778,1710085843825,-442.27459746,0.00022997,2]
[318114780,1710085843834,-2839.632509,0.00022997,2]
[318114782,1710085843844,-1775.25394234,0.00022997,2]
[318114785,1710085843856,-1064.37856666,0.00022997,2]
[318114787,1710085843865,-2839.632509,0.00022997,2]
[318114789,1710085843875,-225.18761783,0.00022997,2]
[318115065,1710085846384,-172.30053706,0.00022996,2]
[318115067,1710085846394,-272.07277118,0.00022996,2]
[318115069,1710085846404,-165.11905767,0.00022996,2]
[318115071,1710085846413,-323.56025495,0.00022996,2]
[318115073,1710085846423,-2614.44489117,0.00022997,2]
[318115075,1710085846433,-2839.632509,0.00022997,2]
[318115077,1710085846441,-2839.632509,0.00022997,2]
[318115078,1710085846450,-2839.632509,0.00022997,2]
[318115080,1710085846459,-2839.632509,0.00022997,2]
[318115082,1710085846468,-161.044047,0.00022997,2]
[318115084,1710085846479,-2839.632509,0.00022997,2]
[318115085,1710085846489,-2839.632509,0.00022997,2]
[318115087,1710085846498,-500.0,0.00022997,2]
[318115089,1710085846506,-500.0,0.00022997,2]
[318115090,1710085846515,-500.0,0.00022997,2]
[318115091,1710085846524,-500.0,0.00022997,2]
[318115092,1710085846533,-151.0,0.00022997,2]
[318115093,1710085846542,-301.56417,0.00022997,2]
[318115094,1710085846553,-500.0,0.00022997,2]
[318115095,1710085846565,-500.0,0.00022997,2]
[318115096,1710085846576,-500.0,0.00022997,2]
[318115097,1710085846588,-500.0,0.00022997,2]
[318115098,1710085846598,-500.0,0.00022997,2]
[318115099,1710085846609,-500.0,0.00022997,2]
[318115100,1710085846620,-500.0,0.00022997,2]
[318115101,1710085846631,-500.0,0.00022997,2]
[318115102,1710085846641,-500.0,0.00022997,2]
[318115103,1710085846651,-597.57306526,0.00022997,2]
[318115104,1710085846661,-2424.32,0.00022997,2]
[318115105,1710085846672,-2424.32,0.00022997,2]
[318115106,1710085846682,-2424.32,0.00022997,2]
[318115107,1710085846693,-2424.32,0.00022997,2]
[318115108,1710085846704,-500.0,0.00022997,2]
[318115109,1710085846715,-500.0,0.00022997,2]
[318115110,1710085846725,-500.0,0.00022997,2]
[318115111,1710085846736,-500.0,0.00022997,2]
[318115112,1710085846747,-165.68008,0.00022997,2]
[318115113,1710085846757,-165.68008,0.00022997,2]
[318115114,1710085846767,-165.68008,0.00022997,2]
[318115115,1710085846778,-165.68008,0.00022997,2]
[318115116,1710085846788,-165.68008,0.00022997,2]
[318115117,1710085846798,-165.68008,0.00022997,2]
[318115118,1710085846807,-165.68008,0.00022997,2]
[318115119,1710085846817,-165.68008,0.00022997,2]
[318115120,1710085846827,-165.68008,0.00022997,2]
[318115121,1710085846837,-165.680073,0.00022997,2]
[318115122,1710085846847,-151.0,0.00022997,2]
[318115123,1710085846858,-500.0,0.00022997,2]
[318115124,1710085846869,-632.355991,0.00022997,2]
[318115125,1710085846879,-151.0,0.00022997,2]
[318115126,1710085846889,-151.0,0.00022997,2]
[318115127,1710085846899,-151.0,0.00022997,2]
[318115128,1710085846909,-151.0,0.00022997,2]
[318115129,1710085846919,-251.19103161,0.00022997,2]
[318115130,1710085846929,-1064.18,0.00022997,2]
[318115131,1710085846939,-1064.18,0.00022997,2]
[318115132,1710085846950,-1064.18,0.00022997,2]
[318115133,1710085846961,-1064.18,0.00022997,2]
[318115134,1710085846972,-1064.18,0.00022997,2]
[318115135,1710085846981,-1064.18,0.00022997,2]
[318115136,1710085846991,-1064.18,0.00022997,2]
[318115137,1710085847000,-151.0,0.00022997,2]
[318115138,1710085847010,-151.0,0.00022997,2]
[318115139,1710085847019,-151.0,0.00022997,2]
[318115140,1710085847030,-151.0,0.00022997,2]
[318115141,1710085847042,-151.0,0.00022997,2]
[318115142,1710085847053,-500.0,0.00022997,2]
[318115143,1710085847063,-500.0,0.00022997,2]
[318115144,1710085847074,-500.0,0.00022997,2]
[318115145,1710085847086,-500.0,0.00022997,2]
[318115146,1710085847096,-500.0,0.00022997,2]
[318115147,1710085847106,-500.0,0.00022997,2]
[318115148,1710085847115,-500.0,0.00022997,2]
[318115149,1710085847126,-307.46416115,0.00022997,2]
[318115150,1710085847135,-2844.01,0.00022997,2]
[318115151,1710085847145,-2844.01,0.00022997,2]
[318115152,1710085847155,-2844.01,0.00022997,2]
[318115153,1710085847166,-2844.01,0.00022997,2]
[318115154,1710085847176,-2844.01,0.00022997,2]
[318115155,1710085847186,-2844.01,0.00022997,2]
[318115156,1710085847196,-2844.01,0.00022997,2]
[318115157,1710085847206,-831.88,0.00022997,2]
[318115158,1710085847217,-831.88,0.00022997,2]
[318115159,1710085847228,-831.88,0.00022997,2]
[318115160,1710085847238,-831.88,0.00022997,2]
[318115161,1710085847249,-14217.62,0.00022997,2]
[318115162,1710085847260,-14217.62,0.00022997,2]
[318115163,1710085847270,-14217.62,0.00022997,2]
[318115164,1710085847281,-14217.62,0.00022997,2]
[318115165,1710085847291,-151.0,0.00022997,2]
[318115166,1710085847301,-151.0,0.00022997,2]
[318115167,1710085847310,-151.0,0.00022997,2]
[318115168,1710085847322,-151.0,0.00022997,2]
[318115169,1710085847331,-10854.11,0.00022997,2]
[318115170,1710085847340,-10854.11,0.00022997,2]
[318115171,1710085847350,-10854.11,0.00022997,2]
[318115172,1710085847359,-10854.11,0.00022997,2]
[318115173,1710085847368,-500.0,0.00022997,2]
[318115174,1710085847378,-500.0,0.00022997,2]
[318115175,1710085847388,-2987.26,0.00022997,2]
[318115176,1710085847402,-2987.26,0.00022997,2]
[318115177,1710085847413,-2987.26,0.00022997,2]
[318115179,1710085847422,-2987.26,0.00022997,2]
[318115181,1710085847433,-2987.26,0.00022997,2]
[318115183,1710085847443,-2987.26,0.00022997,2]
[318115185,1710085847454,-2987.26,0.00022997,2]
[318115187,1710085847465,-2987.26,0.00022997,2]
[318115189,1710085847477,-500.0,0.00022997,2]
[318115191,1710085847488,-500.0,0.00022997,2]
[318115193,1710085847498,-500.0,0.00022997,2]
[318115195,1710085847507,-500.0,0.00022997,2]
[318115197,1710085847517,-500.0,0.00022997,2]
[318115198,1710085847526,-500.0,0.00022997,2]
[318115199,1710085847535,-500.0,0.00022997,2]
[318115200,1710085847546,-500.0,0.00022997,2]
[318115201,1710085847556,-694.35,0.00022998,2]
[318115202,1710085847566,-10975.75097904,0.00022998,2]
[318115203,1710085847575,-773.3342968,0.00022998,2]
[318115204,1710085847585,-273.99227495,0.00022998,2]
[318115205,1710085847594,-513.62113312,0.00022998,2]
[318115206,1710085847604,-155.08374522,0.00022998,2]
[318115207,1710085847613,-184.16435893,0.00022998,2]
[318115208,1710085847623,-199.34266618,0.00022998,2]
[318115209,1710085847633,-155.13186208,0.00022998,2]
[318115210,1710085847643,-7516.25691712,0.00022998,2]
[318115211,1710085847653,-7203.95541473,0.00022998,2]
[318115212,1710085847663,-3144.75019936,0.00022998,2]
[318115213,1710085847672,-155.08374522,0.00022998,2]
[318115214,1710085847682,-300.06089515,0.00022998,2]
[318115215,1710085847692,-194.1141755,0.00022998,2]
[318115216,1710085847701,-160.68587017,0.00022998,2]
[318115222,1710085847711,-214.87013424,0.00022998,2]
[318115224,1710085847824,-690.69324579,0.00022998,2]
[318115226,1710085847833,-198.66531202,0.00022998,2]
[318115228,1710085847842,-388.9237223,0.00022998,2]
[318115230,1710085847852,-300.62186226,0.00022998,2]
[318115232,1710085847860,-155.15961773,0.00022998,2]
[318115234,1710085847869,-200.87297908,0.00022998,2]
[318115236,1710085847879,-413.09895582,0.00022998,2]
[318115238,1710085847888,-500.0,0.00022998,2]
[318115240,1710085847897,-500.0,0.00022998,2]
[318115242,1710085847905,-500.0,0.00022998,2]
[318115244,1710085847914,-500.0,0.00022998,2]
[318115247,1710085847923,-500.0,0.00022998,2]
[318115249,1710085847933,-500.0,0.00022998,2]
[318115250,1710085847942,-500.0,0.00022998,2]
[318115252,1710085847951,-500.0,0.00022998,2]
[318115254,1710085847960,-500.0,0.00022998,2]
[318115256,1710085847969,-500.0,0.00022998,2]
[318115258,1710085847978,-500.0,0.00022998,2]
[318115260,1710085847988,-500.0,0.00022998,2]
[318115263,1710085847997,-500.0,0.00022998,2]
[318115264,1710085848007,-500.0,0.00022998,2]
[318115267,1710085848016,-500.0,0.00022998,2]
[318115269,1710085848025,-500.0,0.00022998,2]
[318115270,1710085848035,-500.0,0.00022998,2]
[318115272,1710085848044,-231.81680588,0.00022998,2]
[318115275,1710085848054,-252.26386656,0.00022998,2]
[318115276,1710085848063,-500.0,0.00022998,2]
[318115279,1710085848072,-500.0,0.00022998,2]
[318115280,1710085848081,-243.54654707,0.00022998,2]
[318115282,1710085848090,-500.0,0.00022998,2]
[318115284,1710085848100,-500.0,0.00022998,2]
[318115287,1710085848109,-500.0,0.00022998,2]
[318115289,1710085848118,-500.0,0.00022998,2]
[318115291,1710085848127,-500.0,0.00022998,2]
[318115293,1710085848136,-500.0,0.00022998,2]
[318115295,1710085848145,-2839.632509,0.00022998,2]
[318115297,1710085848155,-2839.632509,0.00022998,2]
[318115299,1710085848164,-2839.632509,0.00022998,2]
[318115300,1710085848174,-2839.632509,0.00022998,2]
[318115303,1710085848183,-2839.632509,0.00022998,2]
[318115305,1710085848192,-2839.632509,0.00022998,2]
[318115307,1710085848202,-2839.632509,0.00022998,2]
[318115309,1710085848211,-2839.632509,0.00022998,2]
[318115310,1710085848220,-2839.632509,0.00022998,2]
[318115312,1710085848230,-2839.63251844,0.00022998,2]
[318115314,1710085848239,-500.0,0.00022998,2]
[318115316,1710085848249,-500.0,0.00022998,2]
[318115318,1710085848258,-500.0,0.00022998,2]
[318115320,1710085848267,-500.0,0.00022998,2]
[318115322,1710085848276,-500.0,0.00022998,2]
[318115324,1710085848286,-500.0,0.00022998,2]
[318115327,1710085848296,-500.0,0.00022998,2]
[318115329,1710085848305,-376.46607408,0.00022998,2]
[318115331,1710085848315,-500.0,0.00022998,2]
[318115333,1710085848324,-500.0,0.00022998,2]
[318115334,1710085848334,-500.0,0.00022998,2]
[318115336,1710085848343,-500.0,0.00022998,2]
[318115339,1710085848353,-509.19391224,0.00022998,2]
[318115341,1710085848362,-155.10081553,0.00022998,2]
[318115343,1710085848371,-2424.32,0.00022998,2]
[318115345,1710085848379,-2424.32,0.00022998,2]
[318115346,1710085848390,-2424.32,0.00022998,2]
[318115349,1710085848403,-500.0,0.00022998,2]
[318115350,1710085848411,-500.0,0.00022998,2]
[318115353,1710085848421,-264.41946886,0.00022998,2]
[318115355,1710085848430,-1064.18,0.00022998,2]
[318115357,1710085848441,-1064.18,0.00022998,2]
[318115358,1710085848449,-1064.18,0.00022998,2]
[318115360,1710085848459,-1064.18,0.00022998,2]
[318115362,1710085848468,-1064.18,0.00022998,2]
[318115364,1710085848480,-1064.18,0.00022998,2]
[318115366,1710085848489,-1064.18,0.00022998,2]
[318115368,1710085848499,-1064.18341857,0.00022998,2]
[318115370,1710085848508,-500.0,0.00022998,2]
[318115372,1710085848517,-216.79163069,0.00022998,2]
[318115374,1710085848526,-2844.01,0.00022998,2]
[318115376,1710085848535,-2844.01,0.00022998,2]
[318115378,1710085848546,-2844.01,0.00022998,2]
[318115381,1710085848555,-2844.01,0.00022998,2]
[318115382,1710085848564,-2844.01,0.00022998,2]
[318115384,1710085848573,-831.88,0.00022998,2]
[318115387,1710085848583,-2844.01,0.00022998,2]
[318115389,1710085848592,-831.88,0.00022998,2]
[318115391,1710085848602,-2844.01,0.00022998,2]
[318115393,1710085848610,-831.88,0.00022998,2]
[318115395,1710085848619,-831.88,0.00022998,2]
[318115397,1710085848628,-2844.01759178,0.00022998,2]
[318115399,1710085848637,-831.88,0.00022998,2]
[318115400,1710085848646,-831.88,0.00022998,2]
[318115402,1710085848655,-831.88,0.00022998,2]
[318115404,1710085848665,-831.88,0.00022998,2]
[318115406,1710085848674,-831.88,0.00022998,2]
[318115408,1710085848683,-831.88,0.00022998,2]
[318115410,1710085848692,-831.88,0.00022998,2]
[318115412,1710085848701,-831.88,0.00022998,2]
[318115414,1710085848710,-831.88,0.00022998,2]
[318115416,1710085848719,-831.88,0.00022998,2]
[318115418,1710085848728,-832.09,0.00022998,2]
[318115420,1710085848737,-14217.62,0.00022998,2]
[318115422,1710085848747,-14217.62,0.00022998,2]
[318115424,1710085848756,-14217.62,0.00022998,2]
[318115426,1710085848765,-14217.62,0.00022998,2]
[318115428,1710085848774,-14217.62,0.00022998,2]
[318115430,1710085848783,-14217.62,0.00022998,2]
[318115432,1710085848791,-14217.62,0.00022998,2]
[318115434,1710085848802,-14217.62,0.00022998,2]
[318115436,1710085848811,-14217.62,0.00022998,2]
[318115438,1710085848820,-14217.62,0.00022998,2]
[318115440,1710085848829,-14217.62,0.00022998,2]
[318115442,1710085848838,-14217.62,0.00022998,2]
[318115444,1710085848847,-14217.62,0.00022998,2]
[318115446,1710085848856,-14217.62,0.00022998,2]
[318115448,1710085848866,-14217.63140666,0.00022998,2]
[318115450,1710085848875,-10854.11,0.00022998,2]
[318115452,1710085848885,-10854.11,0.00022998,2]
[318115454,1710085848894,-10854.11,0.00022998,2]
[318115456,1710085848903,-10854.11,0.00022998,2]
[318115458,1710085848912,-10854.11,0.00022998,2]
[318115460,1710085848921,-10854.11,0.00022998,2]
[318115462,1710085848929,-10854.11,0.00022998,2]
[318115464,1710085848938,-10854.11,0.00022998,2]
[318115466,1710085848947,-10854.11,0.00022998,2]
[318115468,1710085848956,-10854.11,0.00022998,2]